Cogmind - Beta 14 @@@ ROGUE MODE // 2024.09.03 @ 23:11:09 Player: Cereal Killer Result: Destroyed by G-34 Mercenary with Small Laser Performance ------------- Evolutions (0) 0 Regions Visited (4) 800 Robots Destroyed (10) 50 Value Destroyed (289) 289 Prototype IDs (23) 460 Alien Tech Used (0) 0 Bonus (300) 300 TOTAL SCORE: 1899 Bonus ------- Aligned with FarCom 300 Cogmind --------- Core Integrity 0/250 Matter 295/300 Energy 84/100 System Corruption 0% Temperature Cool (6) Movement Rolling (130) Ox2 Location -9/Mines Parts ------- > --- POWER (1) -------- (None) > --- PROPULSION (2) --- Aluminum Leg Compact Wheel > --- UTILITY (2) ------ High-capacity Storage Unit > --- WEAPON (2) ------- (None) > --- INVENTORY (20) --- Light Ion Engine Aluminum Leg Heat Sink Large Battery (200) High-capacity Battery (250) High-capacity Matter Pod (200) YOLO Cannon Peak State ------------ > --- POWER ------------ Ion Engine > --- PROPULSION ------- Aluminum Leg Aluminum Leg > --- UTILITY ---------- Improved Heat Sink Small Storage Unit > --- WEAPON ----------- Small Laser Beam Cannon > --- INVENTORY -------- Light Ion Engine Compact Wheel Heat Sink Latent Energy Streamer YOLO Cannon [Rating: 12] Favorites ----------- Power Ion Engine Engine Ion Engine Propulsion Aluminum Leg Leg Aluminum Leg Wheel Compact Wheel Utility Improved Heat Sink Device Improved Heat Sink Storage Small Storage Unit Protection Light Armor Plating Weapon Beam Cannon Energy Gun Small Laser Energy Cannon Beam Cannon Ballistic Gun Light Assault Rifle Build | -11 -10 -10 -10 -9 ------- Run | Yrd Mat Min Exi Min Slots Evolved . | . . . . . Power . | . . . . . Propulsion . | . . . . . Utility . | . . . . . Weapon . | . . . . . Parts Attached 17 | 6 . 8 2 1 Power 1 | 1 . . . . Engine 1 | 1 . . . . Core . | . . . . . Reactor . | . . . . . Propulsion 6 | 2 . 3 . 1 Treads . | . . . . . Leg 2 | . . 2 . . Wheel 4 | 2 . 1 . 1 Hover . | . . . . . Flight . | . . . . . Utility 6 | 1 . 3 2 . Device 1 | . . 1 . . Storage 3 | 1 . . 2 . Processor . | . . . . . Hackware . | . . . . . Protection 2 | . . 2 . . Artifact . | . . . . . Weapon 4 | 2 . 2 . . Energy Gun 1 | . . 1 . . Energy Cannon 1 | . . 1 . . Ballistic Gun 2 | 2 . . . . Ballistic Cannon . | . . . . . Launcher . | . . . . . Special Weapon . | . . . . . Impact Weapon . | . . . . . Slashing Weapon . | . . . . . Piercing Weapon . | . . . . . Special Melee Weapon . | . . . . . Unidentified Prototypes . | . . . . . Parts Lost 7 | . . 3 . 4 Power 1 | . . . . 1 Propulsion 1 | . . 1 . . Utility 1 | . . . . 1 Weapon 4 | . . 2 . 2 Highest Loss Streak 4 | . . 2 . 4 To Critical Strikes . | . . . . . Average Slot Usage (%) 94 | . 85 91 100 71 Engine 13 | . 14 14 14 . Leg 19 | . . 16 28 28 Wheel 6 | . 28 4 . . Device 10 | . . 10 14 9 Storage 9 | . 14 3 10 14 Protection 5 | . . 14 3 . Energy Gun 10 | . . 9 14 14 Energy Cannon 10 | . . 10 14 4 Ballistic Gun 7 | . 28 6 . . Peak Build Rating 12 | 6 6 9 12 11 Average Rating 8 | 3 6 7 10 8 On Entrance 6 | . 6 6 9 11 Naked Turns . | . . . . . Heaviest Build 50 | 13 13 16 50 42 Greatest Support 32 | 32 32 20 20 20 Greatest Overweight (x) 4 | . . 4 2 2 Average Overweight (x) . | . . . . 2 Largest Inventory Capacity 20 | 8 8 8 20 20 Average Capacity 10 | 7 8 5 13 20 Most Carried 8 | 5 5 5 8 8 Average Carried 4 | 2 3 4 5 8 Final Capacity 20 | 8 8 5 20 20 Final Carried 8 | 2 5 4 8 8 Class Distribution -------------------- 100% | Mutant Dominant Class ---------------- Mutant | -10/Materials Mutant | -10/Mines Mutant | -10/Exiles Mutant | -9/Mines Resources | -11 -10 -10 -10 -9 ----------- Run | Yrd Mat Min Exi Min Matter Collected 442 | 235 41 136 20 10 Remotely . | . . . . . Salvage Created 349 | . 67 232 . 50 Parts 16 | . 6 10 . . Haulers Intercepted . | . . . . . Recyclers Shooed . | . . . . . Parts Field Recycled . | . . . . . Retrieved Matter . | . . . . . Parts Self-Destructed . | . . . . . Prevented . | . . . . . Kills | -11 -10 -10 -10 -9 ------- Run | Yrd Mat Min Exi Min Combat Hostiles Destroyed 9 | . 1 7 . 1 Guns 6 | . 1 5 . . Cannons 3 | . . 2 . 1 Classes Destroyed 3 | . 2 1 . . Watcher 1 | . 1 . . . Swarmer 3 | . . 3 . . Grunt 6 | . 1 4 . 1 Best Kill Streak 2 | . 1 2 . 1 Combat Bots Only 2 | . 1 2 . 1 Max Kills in Single Turn 2 | . 1 2 . 1 Gunslinging . | . . . . . Exploded . | . . . . . Melee . | . . . . . Uniques/NPCs Destroyed . | . . . . . Combat | -11 -10 -10 -10 -9 -------- Run | Yrd Mat Min Exi Min Hostile Shots Fired 105 | . 4 59 . 42 Missed 25 | . 3 17 . 5 Damage Taken 1028 | . 56 540 . 432 Core 261 | . 26 102 . 133 Absorbed by Shields . | . . . . . Core Remaining (%) 100 | 100 . . . . Volleys Fired 46 | . 5 31 . 10 Largest 2 | . 2 2 . 2 Hottest 100 | . 40 100 . 100 Shots Fired 87 | . 10 61 . 16 Gun 66 | . 10 46 . 10 Cannon 21 | . . 15 . 6 Launcher . | . . . . . Special . | . . . . . Kinetic 47 | . 10 37 . . Thermal 40 | . . 24 . 16 Explosive . | . . . . . Electromagnetic . | . . . . . Robot Hit Streak 14 | . 3 14 . 12 Robot Miss Streak 3 | . 1 3 . 1 Penetration Max . | . . . . . Secondary Targets 1 | . . 1 . . Max Gunslinging Chain 1 | . . 1 . . Shots Hit Robots 61 | . 6 41 . 14 Core Hits 17 | . 3 12 . 2 Critical Kills . | . . . . . Critical Parts Destroyed . | . . . . . Critical Strikes . | . . . . . Melee Attacks . | . . . . . Impact . | . . . . . Slashing . | . . . . . Piercing . | . . . . . Sneak Attacks . | . . . . . Combat Hostiles . | . . . . . Follow-up Attacks . | . . . . . Damage Inflicted 771 | . 67 508 . 196 Guns 502 | . 67 345 . 90 Cannons 269 | . . 163 . 106 Explosions . | . . . . . Melee . | . . . . . Ramming . | . . . . . Kinetic 362 | . 67 295 . . Thermal 409 | . . 213 . 196 Explosive . | . . . . . Electromagnetic . | . . . . . Impact . | . . . . . Slashing . | . . . . . Piercing . | . . . . . Highest Corruption . | . . . . . Average Corruption . | . . . . . Corruption Purged . | . . . . . Corruption Blocked . | . . . . . Overload Shots . | . . . . . Overflow Damage 32 | . . 25 . 7 Projectiles 32 | . . 25 . 7 Explosions . | . . . . . Melee . | . . . . . Knockbacks . | . . . . . Impact . | . . . . . Kinetic . | . . . . . Secondary . | . . . . . Self-Inflicted Damage . | . . . . . Shots . | . . . . . Rammed . | . . . . . Targets Rammed . | . . . . . Kicked . | . . . . . Crushed . | . . . . . Highest Temperature 263 | . . 263 . 79 Average Temperature 57 | . . 58 . 51 Received Heat Transfer 522 | . 6 279 . 237 Siege Activations . | . . . . . Robots Corrupted . | . . . . . Combat Hostiles . | . . . . . Parts Fried . | . . . . . Impact Corruptions . | . . . . . Robots Melted . | . . . . . Combat Hostiles . | . . . . . Parts Melted 3 | . . 2 . 1 Heat Transferred 855 | . . 433 . 422 Parts Sabotaged . | . . . . . Parts Stolen . | . . . . . Parts Stripped . | . . . . . Power Chain Reactions . | . . . . . Alert | -11 -10 -10 -10 -9 ------- Run | Yrd Mat Min Exi Min Peak Influence 188 | . 85 188 . 30 Initial 33 | . . 33 . . Average 74 | . 37 118 . 11 Maximum Alert Level . | . . . . . Low Security (%) 100 | 100 100 100 . 100 Level 1 . | . . . . . Level 2 . | . . . . . Level 3 . | . . . . . Level 4 . | . . . . . Level 5 . | . . . . . High Security . | . . . . . Max Security . | . . . . . Squads Dispatched 1 | . 1 . . . Investigation 1 | . 1 . . . Extermination . | . . . . . Reinforcement . | . . . . . Assault . | . . . . . Garrison . | . . . . . Intercept . | . . . . . Searches Triggered . | . . . . . Construction Impeded . | . . . . . Haulers Reinforced . | . . . . . Active Scanning Responses . | . . . . . Cargo Convoy Interrupts . | . . . . . Stealth | -11 -10 -10 -10 -9 --------- Run | Yrd Mat Min Exi Min Distress Signals . | . . . . . Communications Jammed . | . . . . . Distress Signals . | . . . . . Times Spotted 17 | . 6 8 . 3 Peak Tracking Total 3 | . 3 3 . 3 Tactical Retreats 2 | . 1 1 . . Traps | -11 -10 -10 -10 -9 ------- Run | Yrd Mat Min Exi Min Traps Triggered 1 | . 1 . . . Indirectly . | . . . . . Trap Hack Attempts . | . . . . . Triggered . | . . . . . Disarmed . | . . . . . Reprogrammed . | . . . . . Reused . | . . . . . Traps Extracted . | . . . . . Installed . | . . . . . Triggered . | . . . . . Machines | -11 -10 -10 -10 -9 ---------- Run | Yrd Mat Min Exi Min Machines Disabled . | . . . . . Max in Single Turn . | . . . . . Machines Repaired . | . . . . . Machines Dismantled . | . . . . . Machines Sabotaged . | . . . . . Overloaded Fab Kills . | . . . . . Hacking | -11 -10 -10 -10 -9 --------- Run | Yrd Mat Min Exi Min Machines Accessed 7 | . 5 . 2 . Terminals 4 | . 4 . . . Fabricators . | . . . . . Repair Stations . | . . . . . Recycling Units 1 | . 1 . . . Scanalyzers . | . . . . . Garrison Access . | . . . . . Total Hacks 17 | . 15 . 2 . Successful 8 | . 6 . 2 . Failed 8 | . 8 . . . Catastrophic 2 | . 2 . . . Database Lockouts 1 | . 1 . . . Manual 12 | . 11 . 1 . Terminals 14 | . 14 . . . Fabricators . | . . . . . Repair Stations . | . . . . . Recycling Units 1 | . 1 . . . Scanalyzers . | . . . . . Garrison Access . | . . . . . Terminal Hacks 6 | . 4 . 2 . Record 1 | . . . 1 . Robot Analysis 2 | . 2 . . . Locate Traps 2 | . 2 . . . Derelict Proto ID Bank 1 | . . . 1 . Fabricator Hacks . | . . . . . Repair Station Hacks . | . . . . . Recycling Unit Hacks . | . . . . . Scanalyzer . | . . . . . Garrison Access Hacks . | . . . . . Unauthorized Hacks 2 | . 2 . . . Terminals 1 | . 1 . . . Botnet 1 | . 1 . . . Fabricators . | . . . . . Repair Stations . | . . . . . Recycling Units 1 | . 1 . . . Recyclers 1 | . 1 . . . Scanalyzers . | . . . . . Garrison Access . | . . . . . Data Cores Recovered . | . . . . . Used . | . . . . . Hacking Detections 4 | . 4 . . . Full Trace Events 1 | . 1 . . . Feedback Events . | . . . . . Feedback Blocked . | . . . . . Robot Schematics Acquired . | . . . . . Robots Built . | . . . . . Authchips . | . . . . . Time . | . . . . . Total Robot Build Rating . | . . . . . Part Schematics Acquired . | . . . . . Parts Built . | . . . . . Authchips . | . . . . . Time . | . . . . . Total Part Build Rating . | . . . . . Parts Repaired . | . . . . . Time . | . . . . . Parts Recycled . | . . . . . Recycled Matter . | . . . . . Retrieved Matter . | . . . . . Retrieved Components . | . . . . . Parts Scanalyzed . | . . . . . Part Schematics Acquired . | . . . . . Parts Damaged . | . . . . . Bothacking | -11 -10 -10 -10 -9 ------------ Run | Yrd Mat Min Exi Min Used RIF Installer . | . . . . . Robots Hacked . | . . . . . Non-combat . | . . . . . Combat . | . . . . . Robot Hacks Applied . | . . . . . Relay Couplers Released . | . . . . . Fabnet Peak Effective % . | . . . . . Robots Rewired . | . . . . . Allies Hacked . | . . . . . Hacks Repelled . | . . . . . Allies | -11 -10 -10 -10 -9 -------- Run | Yrd Mat Min Exi Min Total Allies . | . . . . . Largest Group . | . . . . . Highest-Rated Group . | . . . . . Highest-Rated Ally . | . . . . . Total Orders . | . . . . . Ally Attacks . | . . . . . Total Damage . | . . . . . Kills . | . . . . . Allies Corrupted . | . . . . . Allies Melted . | . . . . . Intel | -11 -10 -10 -10 -9 ------- Run | Yrd Mat Min Exi Min Robot Analysis Total 2 | . 2 . . . Derelict Logs Recovered 1 | . . 1 . . Drone Launches . | . . . . . Drone Recoveries . | . . . . . Exploration | -11 -10 -10 -10 -9 ------------- Run | Yrd Mat Min Exi Min Turns Passed 1145 | 59 201 317 532 36 Spaces Moved 716 | 44 183 174 310 5 Core 11 | 6 . 5 . . Treads . | . . . . . Legs 434 | . . 122 310 2 Wheels 271 | 38 183 47 . 3 Hover . | . . . . . Flight . | . . . . . Fastest Speed 50 | 50 100 100 120 130 Average Speed 134 | 93 100 118 168 182 Slowest Speed 260 | 100 100 250 260 260 Overloaded Moves . | . . . . . Propulsion Burnouts . | . . . . . Robots Hopped . | . . . . . Cave-ins Triggered . | . . . . . Exploration Rate (%) 30 | 3 32 45 70 3 Regions Visited 4 Branch Regions 3 Pre-discovered Areas 2 | . . 1 1 . Known Exits Taken . | . . . . . Unknown Exits Taken 4 | 1 1 1 1 . Scrap Searched 1 | . . . . 1 Spaces Dug . | . . . . . Terrain Destroyed . | . . . . . Melee . | . . . . . Projectile . | . . . . . AOE . | . . . . . Terrain Rammed . | . . . . . Walls Destroyed . | . . . . . Machines Disabled . | . . . . . Actions | -11 -10 -10 -10 -9 --------- Run | Yrd Mat Min Exi Min Total 818 | 61 192 227 322 16 Wait 17 | 4 2 11 . . Move 712 | 43 182 173 309 5 Hop . | . . . . . Pick Up 21 | 8 3 3 7 . Fast Attach . | . . . . . Attach 11 | 6 . 5 . . Detach 1 | . . 1 . . Swap 6 | . . 3 2 1 Drop 4 | . . . 4 . Fire 46 | . 5 31 . 10 Melee . | . . . . . Ram . | . . . . . Kick . | . . . . . Crush . | . . . . . Escape Stasis . | . . . . . Rewire . | . . . . . Trap . | . . . . . Miscellaneous . | . . . . . Route ------- -11/Scrapyard -10/Materials -10/Mines -10/Exiles (discovered 2 exits: [*Min x2]) -9/Mines History --------- Turn | Location | Event 13 | -11/Scrapyard | Discovered new exit (range 15) 60 | -11/Scrapyard | Entered Materials 203 | -10/Materials | Discovered new exit (range 15) 212 | -10/Materials | Central database locked down 261 | -10/Materials | Entered Mines 301 | -10/Mines | Build established: Mutant 454 | -10/Mines | Learned location of Storage (-7) 495 | -10/Mines | Core integrity fell below 50% 572 | -10/Mines | Deemed a non-threat by the Exiles lab entrance 573 | -10/Mines | Discovered new exit (range 5) 578 | -10/Mines | Entered Exiles 598 | -10/Exiles | Discovered new exit (range 15) 608 | -10/Exiles | Met 8R-AWN 628 | -10/Exiles | Met EX-HEX 660 | -10/Exiles | Met EX-BIN 678 | -10/Exiles | Aligned with FarCom system 679 | -10/Exiles | Given EX-Vault access code 708 | -10/Exiles | Opened EX-Vault 719 | -10/Exiles | Found YOLO Cannon 723 | -10/Exiles | Found Latent Energy Streamer 728 | -10/Exiles | Found Skeleton Box 761 | -10/Exiles | Warned to stay clear of 0b10 Research branches 793 | -10/Exiles | Met EX-DEC 929 | -10/Exiles | Learned location of Zion (-6) 1084 | -10/Exiles | Discovered new exit (range 10) 1110 | -10/Exiles | Left Exiles lab with YOLO Cannon 1110 | -10/Exiles | Entered Mines 1111 | -9/Mines | Assembled infested the area 1136 | -9/Mines | Core integrity fell below 20% 1146 | -9/Mines | Destroyed by G-34 Mercenary with Small Laser Last Messages --------------- World map updated: -6/Zion. Extracted 4 energy. Acquired Lrg. Battery. EXIT=FOUND LOCATION=UNKNOWN GOAL=ESCAPE Receiving FarCom transmissions... ALERT: Infestation in the mines, dispatching Demolisher response squad. Ion Engine destroyed. Destroyed Lgt. Nuclear Core. Imp. Heat Sink melted. G-47 Trooper destroyed. Beam Cannon destroyed. Acquired 10 matter. Imp. Heat Sink destroyed. Sml. Laser destroyed. Searching scrap... Found Sml. Storage Unit. Found 62 Matter. Map ----- +----------------------------------------------------+ | ?????????????????????????????????????????????????? | | ?????????????????????????????????????????????????? | | ?????????????????????????????????????????????????? | | ?????????????????????????????????????????????????? | | ?????????????????????????????????????????????????? | | ?????????????????????????????????????????????????? | | ?????????????????????????????????????????????????? | | ?????????????????????????????????????????????????? | | ?????????????????????????????????????????????????? | | ?????????????????????????????????????????????????? | | ?????????????????????????????????????????????????? | | ?????????????????????????????????????????????????? | | ?????????????????????????????????????????????????? | | ?????????????????????????????????????????????????? | | ?????????????????????????????????????????????????? | | ?????????????????????????????????????????????????? | | ?????????????????????????????????????????????????? | | ?????????????????????????????????????????????????? | | ???????????????????????????#####?????????????????? | | ???????????????????????????# ??????????????????? | | ???????????????????????????# #??????????????????? | | ???????????????????????????# #??????????????????? | | ??????????????????????????## #??????????????????? | | ?????????????????????????## ###????????????????? | | ?????????????????????# ###! g ##???????????????? | | ?????????????????????# @ #???????????????? | | ?????????????????????###### % #???????????????? | | ??????????????????????????# g ##???????????????? | | ??????????????????????????## ###????????????????? | | ???????????????????????????####??????????????????? | | ?????????????????????????????????????????????????? | | | | | | | | | | | | | | | | | | | | | | | | | | | | | | | | | | | | | | | +----------------------------------------------------+ Best States ------------- Heat Dissipation 39 Energy Generation 10 Energy Capacity 250 Matter Stores 300 Matter Capacity 300 Sight Range 16 Terrain Scan Density 10 Armor Coverage 150 Evasion (%) 55 Item Schematics ----------------- None Robot Schematics ------------------ None Fabricated ------------ Nothing Alien Tech Used ----------------- None Achievements -------------- None Challenges ------------ None Game ------ Seed ModifiedAuthchipNanosword Manual? 0 Play Time 00:10:42 Cumulative 189.5 hours Start 2024.09.03 @ 21:19:05 End 2024.09.03 @ 23:11:09 Sessions 3 Manual Loads 0 Difficulty Rogue Special Mode None Game No. 163 Rogue 154 Adventurer 9 Explorer 0 Win Type - Total 0 Types 0/0/0/0/0/0/0/0/0 Lore% 69 Gallery% 69 Achievement% 55 Wizard Run 0 Options --------- Layout 1 ASCII 0 Keyboard 0 Movement Numpad Keybinds 0 Fullscreen 1 Font 24/Smallcaps Map View 50x35 Zoom Use 0% Tactical HUD 0 Map Filters NONE Filters NONE Steam 1 RUN: c35bc5db-b8fc-4cfb-8c8f-ab069b9add01